Cogmind - Beta 16 @@@ ROGUE MODE // 2025.12.02 @ 19:36:27 Player: Torako Result: Destroyed by P-80 Master with Gamma Rifle Performance ------------- Evolutions (7) 3500 Regions Visited (23) 4600 Robots Destroyed (190) 950 Value Destroyed (8508) 8508 Prototype IDs (63) 1260 Alien Tech Used (0) 0 Bonus (4253) 4253 TOTAL SCORE: 23071 Bonus ------- High Alert Combat Kills 1195 Follower Combat Kills 1086 Network Hubs Disabled 200 Aligned with FarCom 300 Met Warlord at Base 500 MAIN.C Attacked Warlord 500 Built Enhanced Grunts 300 A7 Reached Mainframe 300 Friendly Fire -128 Cogmind --------- Core Integrity 0/1300 Matter 245/300 Energy 495/600 System Corruption 52% Temperature Cool (16) Movement Core (50) Location -3/Research Parts ------- > --- POWER (3) -------- (None) > --- PROPULSION (8) --- (None) > --- UTILITY (7) ------ Experimental Coolant Injector Advanced Energy Well Advanced Signal Interpreter > --- WEAPON (3) ------- (None) > --- INVENTORY (5) ---- Nova Cannon Improved Plasma Cutter Peak State ------------ > --- POWER ------------ Light Antimatter Reactor Light Particle Reactor Micro Antimatter Reactor > --- PROPULSION ------- VTOL Module VTOL Module VTOL Module Field Propulsion Drive Cooled Nuclear Pulse Thruster Improved Diametric Drive Impulse Thruster Array > --- UTILITY ---------- Experimental Cooling System Spectral Analyzer Advanced Signal Interpreter Advanced Transmission Jammer Improved Propulsion Shielding Makeshift Thermal Plating System Mapper > --- WEAPON ----------- Improved KE Penetrator > --- INVENTORY -------- Experimental Coolant Injector Advanced Energy Well Vortex Driver Tesla Bomb Launcher Improved Plasma Cutter [Rating: 122] Favorites ----------- Power Hybrid Deuterium Engine Engine Hybrid Deuterium Engine Power Core Cooled Fission Core Reactor Antimatter Reactor Propulsion Advanced Treads Treads Advanced Treads Leg Aluminum Leg Wheel Wheel Hover Unit Antigrav System Flight Unit VTOL Module Utility High-capacity Storage Unit Device Improved Cooling System Storage High-capacity Storage Unit Processor Core Analyzer Hackware Hacking Suite Protection Improved Medium Armor Plating Weapon Enhanced Force Rifle Energy Gun Enhanced Force Rifle Energy Cannon Beam Cannon Ballistic Gun Improved Assault Rifle Ballistic Cannon Antimatter Cannon Launcher Tesla Bomb Launcher Special Weapon Improved Plasma Cutter Slashing Weapon Axe Build | -11 -10 -10 -9 -9 -9 -8 -8 -7 -7 -6 -5 -5 -5 -5 -5 -5 -5 -4 -4 -4 -4 -3 -3 ------- Run | Yrd Mat Min Mat Min Exi Min Mat Fac Low Fac Fac Was Fac Ext Cet Arc Hub Fac Upp Upp War Pro Res Slots Evolved 14 | . . . 2 . . . 2 2 . 2 2 . . . . . . 2 . . . . 2 Power 2 | . . . . . . . . . . 1 1 . . . . . . . . . . . . Propulsion 6 | . . . 1 . . . 1 . . . . . . . . . . 2 . . . . 2 Utility 5 | . . . 1 . . . 1 2 . 1 . . . . . . . . . . . . . Weapon 1 | . . . . . . . . . . . 1 . . . . . . . . . . . . Parts Attached 217 | 7 4 . 18 1 1 . 13 50 11 5 13 7 1 14 3 8 18 6 2 . 10 . 25 Power 22 | 1 . . 1 . . . 1 5 1 1 1 1 . . . 1 2 1 . . 2 . 4 Engine 9 | 1 . . 1 . . . . 3 1 1 . . . . . . 1 . . . 1 . . Core 4 | . . . . . . . 1 2 . . 1 . . . . . . . . . . . . Reactor 9 | . . . . . . . . . . . . 1 . . . 1 1 1 . . 1 . 4 Propulsion 63 | 2 . . 6 . . . 5 13 4 1 4 2 . 1 1 1 8 2 . . 1 . 12 Treads 28 | 2 . . 3 . . . 5 5 2 . 4 2 . 1 1 . 3 . . . . . . Leg 9 | . . . 3 . . . . 4 1 1 . . . . . . . . . . . . . Wheel 4 | . . . . . . . . 3 1 . . . . . . . . . . . . . . Hover 3 | . . . . . . . . 1 . . . . . . . . . 1 . . . . 1 Flight 19 | . . . . . . . . . . . . . . . . 1 5 1 . . 1 . 11 Utility 89 | 2 2 . 7 . 1 . 5 19 3 3 8 3 1 8 1 4 6 3 2 . 5 . 6 Device 36 | . 1 . 5 . . . 1 6 2 2 2 2 1 3 . 1 2 2 1 . 2 . 3 Storage 8 | 2 1 . 1 . 1 . . . 1 . . . . . . 1 1 . . . . . . Processor 17 | . . . 1 . . . 2 6 . . 5 . . . . . . . 1 . 1 . 1 Hackware 5 | . . . . . . . . 2 . 1 . . . . . . . . . . 1 . 1 Protection 23 | . . . . . . . 2 5 . . 1 1 . 5 1 2 3 1 . . 1 . 1 Artifact . | . . . . . . . . . . . . . . . . . . . . . . . . Weapon 43 | 2 2 . 4 1 . . 2 13 3 . . 1 . 5 1 2 2 . . . 2 . 3 Energy Gun 13 | . . . 1 . . . . 3 2 . . 1 . 3 1 1 . . . . 1 . . Energy Cannon 9 | . 2 . 1 . . . . 2 . . . . . . . 1 2 . . . 1 . . Ballistic Gun 11 | 2 . . 2 . . . 2 4 . . . . . . . . . . . . . . 1 Ballistic Cannon 3 | . . . . . . . . 2 . . . . . 1 . . . . . . . . . Launcher 5 | . . . . 1 . . . 1 1 . . . . . . . . . . . . . 2 Special Weapon 1 | . . . . . . . . . . . . . . 1 . . . . . . . . . Impact Weapon . | . . . . . . . . . . . . . . . . . . . . . . . . Slashing Weapon 1 | . . . . . . . . 1 . . . . . . . . . . . . . . . Piercing Weapon . | . . . . . . . . . . . . . . . . . . . . . . . . Special Melee Weapon . | . . . . . . . . . . . . . . . . . . . . . . . . Unidentified Prototypes 29 | . . . 2 . . . . 6 1 . . . . . 3 2 2 1 . . 8 . 4 Corrupted Parts 13 | . . . . . . . . . . . 1 . . . 2 1 6 . . . . . 3 System Corruption 78 | . . . . . . . . . . . 9 . . . 17 8 21 . . . . . 23 Parts Lost 93 | . . . 3 . . . 1 30 4 . 4 2 . 9 . . 8 2 . . . . 30 Power 5 | . . . . . . . . 1 . . 1 . . . . . 1 . . . . . 2 Propulsion 39 | . . . 2 . . . . 12 1 . 2 2 . 1 . . 1 2 . . . . 16 Utility 33 | . . . 1 . . . 1 12 1 . 1 . . 4 . . 4 . . . . . 9 Weapon 16 | . . . . . . . . 5 2 . . . . 4 . . 2 . . . . . 3 Highest Loss Streak 12 | . . . 2 . . . 1 9 4 . 4 2 . 3 . . 8 2 . . . . 12 To Critical Strikes 4 | . . . . . . . . 1 . . 1 . . 2 . . . . . . . . . Average Backups 13 | 2 6 9 13 15 14 15 19 18 14 12 15 14 12 11 12 12 12 5 5 5 4 5 4 Power 1 | . 1 1 1 1 1 1 1 2 2 1 . . . . . 1 . . . . . . . Propulsion 3 | 1 2 2 1 4 3 3 5 4 1 1 5 5 5 3 3 2 3 . . . . . . Utility 3 | . . 2 2 4 4 5 7 4 1 1 3 2 2 3 3 3 5 1 2 2 1 2 . Weapon 4 | . 3 4 7 5 5 5 4 5 7 6 6 4 4 3 4 4 2 2 2 2 1 2 2 Tool/Special . | . . . . . . . . . . . . . . . . . . . . . . . . Unused Backups 45 | . . . 6 . 1 . 4 14 . 1 3 6 1 1 4 . . 3 . . . . 1 Power 9 | . . . . . . . . 5 . 1 . 1 . . 1 . . 1 . . . . . Propulsion 12 | . . . . . 1 . 2 4 . . 2 2 . 1 . . . . . . . . . Utility 11 | . . . 2 . . . 2 2 . . . 1 . . 2 . . 2 . . . . . Weapon 12 | . . . 4 . . . . 3 . . 1 2 . . 1 . . . . . . . 1 Tool/Special 1 | . . . . . . . . . . . . . 1 . . . . . . . . . . Average Slot Usage (%) 88 | . 100 100 98 100 100 100 99 95 93 98 98 89 88 87 80 85 76 59 55 57 72 78 57 Engine 8 | . 14 14 11 11 11 11 8 5 6 12 10 11 11 11 11 11 8 8 5 5 5 5 . Reactor 2 | . . . . . . . . . . . . 3 5 5 5 5 5 . 5 5 5 5 5 Treads 17 | . 28 28 22 33 33 33 36 19 14 6 20 14 11 10 11 11 12 . . . . . . Leg 2 | . . . 9 . . . . 4 8 19 2 . . . . . . . . . . . . Flight 2 | . . . . . . . . . . . . . . . . . . 28 21 21 24 26 23 Device 13 | . 9 14 16 11 11 11 2 5 23 24 17 8 16 21 23 22 17 15 10 10 10 10 6 Storage 6 | . 18 14 11 11 11 11 9 7 9 6 5 5 5 5 5 5 6 3 . . . . 2 Processor 8 | . . . 4 11 11 11 17 17 7 6 11 19 11 6 . . . . 3 5 8 10 9 Hackware 1 | . . . . . . . . 5 . 6 3 . . . . . . . . . 3 5 1 Protection 4 | . . . . . . . 7 7 . . . 4 5 6 10 8 4 . 5 5 7 10 4 Energy Gun 5 | . . . . . . . . . 2 13 16 16 17 14 7 12 6 . . . 4 5 . Energy Cannon 3 | . 22 28 13 11 11 11 1 1 . . . . . . . 2 7 . . . . . . Ballistic Gun 4 | . 6 . 8 8 11 11 16 11 . . . . . . . . . . . . . . . Peak Build Rating 122 | 7 7 8 17 17 18 18 33 59 55 66 90 96 95 94 104 120 118 94 55 55 108 83 122 Average Rating 61 | 5 6 7 13 16 17 18 31 39 52 64 83 86 93 92 96 108 107 53 53 55 76 83 95 On Entrance 53 | . 7 7 8 17 17 18 18 33 36 55 66 79 95 94 92 101 105 94 55 55 55 83 83 Avg Prop Armor Cover (%) 9 | . . . 5 . . . . 12 20 12 9 . . . . . 2 6 7 7 7 . 11 Naked Turns . | . . . . . . . . . . . . . . . . . . . . . . . . Heaviest Build 150 | 18 33 33 36 36 56 56 62 91 76 73 91 95 97 107 108 114 150 26 18 18 24 24 54 Greatest Support 150 | 40 40 40 60 60 60 60 88 88 48 49 102 140 140 140 150 150 150 29 18 18 25 25 60 Greatest Overweight (x) 23 | 1 . . 1 . . . . 23 4 2 2 1 . . . 1 2 1 . . . . 1 Average Overweight (x) . | . . . . . . . . . 3 1 . . . . . . . . . . . . . Largest Inventory Capacity 20 | 8 15 15 15 15 20 20 20 20 20 20 20 20 20 20 20 20 20 20 5 5 5 5 5 Average Capacity 17 | 7 10 15 15 15 15 20 20 20 20 20 20 20 20 20 20 20 20 5 5 5 5 5 5 Most Carried 20 | 4 9 10 15 15 15 15 20 20 18 15 20 20 20 20 20 20 20 15 5 5 5 5 5 Average Carried 15 | 3 7 9 13 15 14 15 19 18 16 14 18 19 20 19 19 19 17 5 4 5 4 5 4 Final Capacity 20 | 8 15 15 15 15 20 20 20 20 20 20 20 20 20 20 20 20 20 5 5 5 5 5 5 Final Carried 20 | 4 9 10 15 15 15 15 20 19 15 15 20 20 20 20 20 20 15 5 5 5 5 5 2 Class Distribution -------------------- 33% | Mutant 17% | Scavenger-Tank 15% | Scavenger-Mutant 6% | Commander-Tank 5% | Gunner 4% | Scavenger-Gunner 4% | Sprinter 3% | Scavenger-Sprinter 3% | Hacker-Sprinter 3% | Commander-Mutant Dominant Class ---------------- Mutant | -10/Materials Mutant | -10/Mines Mutant | -9/Materials Mutant | -9/Mines Mutant | -9/Exiles Mutant | -8/Mines Mutant | -8/Materials Scavenger-Mutant | -7/Factory Mutant | -7/Lower Caves Skirmisher | -6/Factory Gunner | -5/Factory Scavenger-Gunner | -5/Waste Scavenger-Tank | -5/Factory Scavenger-Tank | -5/Extension Commander-Mutant | -5/Cetus Commander-Tank | -5/Archives Scavenger-Tank | -5/Hub_04(d) Scavenger-Sprinter | -4/Factory Sprinter | -4/Upper Caves Sprinter | -4/Upper Caves Hacker-Sprinter | -4/Warlord Hacker-Sprinter | -3/Proximity Caves Sprinter | -3/Research Resources | -11 -10 -10 -9 -9 -9 -8 -8 -7 -7 -6 -5 -5 -5 -5 -5 -5 -5 -4 -4 -4 -4 -3 -3 ----------- Run | Yrd Mat Min Mat Min Exi Min Mat Fac Low Fac Fac Was Fac Ext Cet Arc Hub Fac Upp Upp War Pro Res Matter Collected 5743 | 276 92 97 365 57 . . 264 1603 233 . 407 172 22 511 104 144 739 150 60 5 61 . 381 Remotely 552 | . . . . . . . . . . . . . . 329 104 119 . . . . . . . Salvage Created 9898 | 77 120 52 728 124 . . 307 2229 209 120 682 1515 150 1087 275 84 1678 . . . . . 461 Parts 466 | 3 10 5 34 7 . . 22 121 7 2 40 37 10 42 7 2 93 . . . . . 24 Haulers Intercepted 3 | . . . 2 . . . . . . 1 . . . . . . . . . . . . . Recyclers Shooed 2 | . . . 1 . . . . . . . . . . . . . . . . . . . 1 Parts Field Recycled . | . . . . . . . . . . . . . . . . . . . . . . . . Retrieved Matter . | . . . . . . . . . . . . . . . . . . . . . . . . Parts Self-Destructed 1 | . . . . . . . . . 1 . . . . . . . . . . . . . . Prevented 5 | . . . . . . . . . 5 . . . . . . . . . . . . . . Parts Restored . | . . . . . . . . . . . . . . . . . . . . . . . . Kills | -11 -10 -10 -9 -9 -9 -8 -8 -7 -7 -6 -5 -5 -5 -5 -5 -5 -5 -4 -4 -4 -4 -3 -3 ------- Run | Yrd Mat Min Mat Min Exi Min Mat Fac Low Fac Fac Was Fac Ext Cet Arc Hub Fac Upp Upp War Pro Res Combat Hostiles Destroyed 158 | . 2 3 10 5 . . 7 47 7 . 9 5 2 16 3 1 28 . . . . . 13 Guns 67 | . . . 4 2 . . 7 26 . . 6 5 1 14 . . 2 . . . . . . Cannons 32 | . 2 3 5 1 . . . 8 . . . . . 2 . . 10 . . . . . 1 AOE 42 | . . . . 2 . . . 12 5 . 2 . . . . . 9 . . . . . 12 Classes Destroyed 16 | 1 3 1 3 . . . 1 5 . . . 1 . . . . 1 . . . . . . Worker 5 | . . . . . . . . 4 . . 1 . . . . . . . . . . . . Builder 6 | . . . . . . . . 2 . . . . . . . . 3 . . . . . 1 Hauler 3 | . . . 2 . . . . . . 1 . . . . . . . . . . . . . Recycler 6 | 1 . . 1 . . . . 3 . . . . . . . . . . . . . . 1 Operator 3 | . 1 . . . . . . 1 . . . . . 1 . . . . . . . . . Watcher 8 | . 1 . 2 . . . 2 2 . . . . . . 1 . . . . . . . . Swarmer 40 | . . 3 . 2 . . 4 8 7 . . . . . . . 8 . . . . . 8 Grunt 43 | . 2 . 6 3 . . 1 12 . . 3 . . 8 . . 5 . . . . . 3 Brawler 5 | . . . . . . . . 3 . . . . . . . . 2 . . . . . . Duelist 6 | . . . 1 . . . . 2 . . . . . . . . 3 . . . . . . Sentry 22 | . . . 3 . . . 1 6 . . 3 . 1 6 . 1 1 . . . . . . Specialist 4 | . . . . . . . . 3 . . . . . . . . 1 . . . . . . Hunter 11 | . . . . . . . 1 4 . . 3 . . 1 . . 2 . . . . . . Programmer 16 | . . . . . . . . 9 . . . . 1 . . . 4 . . . . . 2 Heavy 1 | . . . . . . . . . . . . . . . . . 1 . . . . . . Compactor 5 | . . . . . . . . . . . . 5 . . . . . . . . . . . Cetus Guard 3 | . . . . . . . . . . . . . . . 3 . . . . . . . . Enhanced Grunt 1 | . . . . . . . . . . . . . . . . . 1 . . . . . . Butcher 1 | . . . . . . . . . . . . . . 1 . . . . . . . . . Guerrilla 1 | . . . . . . . . . . . . . . . . . 1 . . . . . . Best Kill Streak 15 | 1 2 3 3 3 . . 2 15 7 1 5 2 1 4 4 1 8 . . . . . 6 Combat Bots Only 12 | . 2 3 3 3 . . 2 12 7 . 4 2 1 4 3 1 8 . . . . . 4 Max Kills in Single Turn 4 | 1 1 2 1 2 . . 1 3 4 1 2 1 1 2 2 1 2 . . . . . 3 Gunslinging 1 | . . . . . . . . . . . . . . 1 . . . . . . . . . Exploded 4 | . . . . 2 . . . 2 4 . 1 . . . . . 2 . . . . . 3 Melee . | . . . . . . . . . . . . . . . . . . . . . . . . Uniques/NPCs Destroyed . | . . . . . . . . . . . . . . . . . . . . . . . . Combat | -11 -10 -10 -9 -9 -9 -8 -8 -7 -7 -6 -5 -5 -5 -5 -5 -5 -5 -4 -4 -4 -4 -3 -3 -------- Run | Yrd Mat Min Mat Min Exi Min Mat Fac Low Fac Fac Was Fac Ext Cet Arc Hub Fac Upp Upp War Pro Res Hostile Shots Fired 1495 | . 10 27 59 11 . . 46 451 36 . 57 2 12 120 7 5 267 22 . 31 10 . 322 Missed 475 | . 2 2 13 3 . . 13 141 10 . 12 . 6 36 6 1 44 8 . 22 8 . 148 Hits 1020 | . 8 25 46 8 . . 33 310 26 . 45 2 6 84 1 4 223 14 . 9 2 . 174 Melee 31 | . . . 6 . . . . 19 . . . 2 . . . . 4 . . . . . . Projectile 989 | . 8 25 40 8 . . 33 291 26 . 45 . 6 84 1 4 219 14 . 9 2 . 174 AOE 3 | . . 3 . . . . . . . . . . . . . . . . . . . . . Critical Strikes 56 | . . . 1 . . . 1 13 . . 3 1 . 4 1 . 14 4 . . . . 14 Part Disruptions 2 | . . . . . . . . . . . . . . . . . 2 . . . . . . Damage Taken 18798 | . 90 254 755 118 . . 454 5149 495 . 898 248 96 1556 21 120 3983 236 . 166 39 . 4120 Core 2904 | . 22 10 138 17 . . 25 577 96 . 58 160 . 150 . . 202 57 . 76 . . 1316 Absorbed by Shields 1434 | . . . . . . . . 221 . . . . 35 555 8 43 372 63 . . . . 137 Redirected to Shielding 136 | . . . . . . . . 17 . . . . . . . . . . . 43 . . 76 Ignored by Resistances 1220 | . . . . . . . . . . . . . . . . . 1212 . . . 5 . 3 Regen/Repaired (Parts) 55 | . . . . . . . . . . . 55 . . . . . . . . . . . . Core Remaining (%) 72 | 100 . 87 . . . 61 95 . 3 100 . . . . . . 43 . . . . 88 . Volleys Fired 485 | 4 8 10 49 7 . . 25 128 6 4 23 18 7 52 6 5 118 . . . . . 15 Largest 3 | 2 2 2 2 2 . . 2 2 2 2 3 3 3 3 1 3 3 . . . . . 1 Hottest 570 | 40 120 120 120 91 . . 91 148 66 162 243 243 227 243 46 241 570 . . . . . 100 Shots Fired 946 | 8 16 20 98 13 . . 50 238 7 8 59 54 20 149 7 11 174 . . . . . 14 Gun 584 | 8 . . 32 6 . . 48 158 . 8 56 54 20 127 1 11 55 . . . . . . Cannon 310 | . 16 20 66 6 . . 2 70 2 . . . . 22 . . 103 . . . . . 3 Launcher 52 | . . . . 1 . . . 10 5 . 3 . . . 6 . 16 . . . . . 11 Special . | . . . . . . . . . . . . . . . . . . . . . . . . Kinetic 292 | 8 . . 32 6 . . 48 174 2 . . . . 22 . . . . . . . . . Thermal 557 | . 16 20 66 6 . . 2 46 . 8 56 54 20 127 1 11 124 . . . . . . Explosive 19 | . . . . 1 . . . 10 . . . . . . . . . . . . . . 8 Electromagnetic 75 | . . . . . . . . 8 5 . 3 . . . 6 . 50 . . . . . 3 Entropic 3 | . . . . . . . . . . . . . . . . . . . . . . . 3 Robot Hit Streak 33 | 5 6 5 16 10 . . 20 33 2 3 11 14 6 25 2 4 13 . . . . . 5 Robot Miss Streak 7 | 2 3 3 3 1 . . 2 5 3 1 2 2 2 4 . 3 7 . . . . . 2 Penetration Max 1 | . . . . . . . . . . . . . . . . . . . . . . . 1 Secondary Targets 7 | . . . . . . . . 2 . . . . . 5 . . . . . . . . . Max Gunslinging Chain 1 | . . . . . . . . 1 . . . . . 1 . . . . . . . . . Shots Hit Robots 626 | 5 8 11 71 10 . . 37 177 3 6 40 43 11 106 1 6 82 . . . . . 9 Core Hits 365 | 2 4 4 21 6 . . 16 143 4 2 18 16 3 46 5 . 52 . . . . . 23 Critical Kills 13 | . . . . . . . . 2 . . 5 1 1 4 . . . . . . . . . Critical Parts Destroyed 10 | . . . . . . . 1 . . 1 4 1 1 2 . . . . . . . . . Critical Strikes 36 | . . . . . . . 1 5 . 1 10 5 2 11 . . . . . . . . 1 Burn 3 | . . . . . . . . . . . . . . 3 . . . . . . . . . Destroy 27 | . . . . . . . 1 2 . 1 10 5 2 6 . . . . . . . . . Blast 4 | . . . . . . . . 2 . . . . . 2 . . . . . . . . . Corrupt 1 | . . . . . . . . 1 . . . . . . . . . . . . . . . Sunder 1 | . . . . . . . . . . . . . . . . . . . . . . . 1 Melee Attacks 1 | . . . . . . . . 1 . . . . . . . . . . . . . . . Impact . | . . . . . . . . . . . . . . . . . . . . . . . . Slashing 1 | . . . . . . . . 1 . . . . . . . . . . . . . . . Piercing . | . . . . . . . . . . . . . . . . . . . . . . . . Sneak Attacks . | . . . . . . . . . . . . . . . . . . . . . . . . Combat Hostiles . | . . . . . . . . . . . . . . . . . . . . . . . . Follow-up Attacks . | . . . . . . . . . . . . . . . . . . . . . . . . Damage Inflicted 22917 | 66 157 210 1158 285 . . 563 5730 614 169 1443 1173 329 2959 537 174 5067 . . . . . 2283 Guns 9826 | 66 . . 335 93 . . 563 2257 . 169 969 1173 329 2452 . 174 1246 . . . . . . Cannons 5394 | . 157 210 823 102 . . . 1308 . . . . . 502 . . 2044 . . . . . 248 Explosions 7656 | . . . . 90 . . . 2161 614 . 474 . . . 537 . 1745 . . . . . 2035 Melee . | . . . . . . . . . . . . . . . . . . . . . . . . Ramming 41 | . . . . . . . . 4 . . . . . 5 . . 32 . . . . . . Kinetic 4098 | 66 . . 335 93 . . 563 2539 . . . . . 502 . . . . . . . . . Thermal 10847 | . 157 210 823 102 . . . 1384 . 169 969 1173 329 2452 . 174 2905 . . . . . . Explosive 3494 | . . . . 90 . . . 1597 . . . . . . . . . . . . . . 1807 Electromagnetic 4189 | . . . . . . . . 206 614 . 474 . . . 537 . 2130 . . . . . 228 Impact . | . . . . . . . . . . . . . . . . . . . . . . . . Slashing . | . . . . . . . . . . . . . . . . . . . . . . . . Piercing . | . . . . . . . . . . . . . . . . . . . . . . . . Entropic 248 | . . . . . . . . . . . . . . . . . . . . . . . 248 Highest Corruption 85 | . . . . . . . 2 18 18 . 9 31 31 31 48 56 85 3 3 3 3 . 52 Average Corruption 30 | . . . . . . . 2 15 17 . 9 21 31 31 45 55 63 2 3 3 3 . 24 Corruption Purged 2 | . . . . . . . . . 2 . . . . . . . . . . . . . . Corruption Blocked . | . . . . . . . . . . . . . . . . . . . . . . . . Effects 344 | . . . . . . . 5 41 11 . 9 15 17 92 24 12 83 1 3 2 1 . 28 Message Errors 78 | . . . . . . . . 12 5 . 5 1 5 17 5 2 19 1 . . . . 6 Matter Fused 76 | . . . . . . . 2 10 3 . 2 2 2 27 7 1 15 . . 1 . . 4 Heat Flow Errors 37 | . . . . . . . 1 4 1 . 1 2 1 11 5 2 3 . 3 . . . 3 Energy Discharges 36 | . . . . . . . 1 1 1 . 1 . 5 9 2 2 9 . . 1 1 . 3 Parts Rejected 5 | . . . . . . . . . . . . . . 2 . . 2 . . . . . 1 Parts Fused 3 | . . . . . . . . . . . . . . 1 . . 2 . . . . . . Data Loss (minor) 30 | . . . . . . . 1 3 . . . 4 3 8 2 3 5 . . . . . 1 Data Loss (major) 10 | . . . . . . . . 3 1 . . 2 . 2 . . 1 . . . . . 1 Misfires 14 | . . . . . . . . 3 . . . 2 . 6 1 1 1 . . . . . . Alerts 9 | . . . . . . . . 2 . . . 1 . 1 2 . 2 . . . . . 1 Misdirections 9 | . . . . . . . . . . . . . . 2 . . . . . . . . 7 Weapon Failures 37 | . . . . . . . . 3 . . . 1 1 6 . 1 24 . . . . . 1 Overload Shots 5 | . . . . . . . . . . . . . . . . . 5 . . . . . . Overflow Damage 507 | . 4 . 5 . . . . 155 74 . 6 . . 15 . . 42 . . . . . 206 Projectiles 96 | . 4 . 5 . . . . . . . . . . 15 . . 17 . . . . . 55 Explosions 411 | . . . . . . . . 155 74 . 6 . . . . . 25 . . . . . 151 Melee . | . . . . . . . . . . . . . . . . . . . . . . . . Knockbacks 6 | . . . . . . . . 4 . . . . . 2 . . . . . . . . . Impact . | . . . . . . . . . . . . . . . . . . . . . . . . Kinetic 6 | . . . . . . . . 4 . . . . . 2 . . . . . . . . . Secondary . | . . . . . . . . . . . . . . . . . . . . . . . . Self-Inflicted Damage 886 | . . . . . . . . 443 111 . . . . . . . 120 . . . . . 212 Shots 34 | . . . . . . . . 12 4 . . . . . . . 13 . . . . . 5 Rammed 4 | . . . . . . . . 1 . . . . . 1 . . 2 . . . . . . Targets Rammed 5 | . . . . . . . . 1 . . . . . 1 . . 3 . . . . . . Kicked . | . . . . . . . . . . . . . . . . . . . . . . . . Crushed 1 | . . . . . . . . . . . . . . . . . 1 . . . . . . Highest Temperature 808 | . 210 470 288 . . . 134 300 166 160 808 631 44 434 167 127 464 . 207 . . . 157 Average Temperature 123 | . 75 199 93 . . . 16 62 91 71 270 191 44 119 78 52 158 . 91 . . . 62 Received Heat Transfer 1995 | . 48 . 225 60 . . 144 821 . . 90 9 6 301 . 12 63 6 . 60 9 . 141 Effects 41 | . . 3 . . . . . . . . 14 10 . . . . 14 . . . . . . Shutdowns 9 | . . 1 . . . . . . . . 1 2 . . . . 5 . . . . . . Energy Bleed 2 | . . . . . . . . . . . 1 . . . . . 1 . . . . . . Interference 9 | . . . . . . . . . . . 3 1 . . . . 5 . . . . . . Matter Decay 4 | . . 1 . . . . . . . . 3 . . . . . . . . . . . . Short Circuit 4 | . . . . . . . . . . . 1 1 . . . . 2 . . . . . . Damage (minor) 6 | . . 1 . . . . . . . . 2 2 . . . . 1 . . . . . . Damage (major) 6 | . . . . . . . . . . . 3 3 . . . . . . . . . . . Damage (core) 1 | . . . . . . . . . . . . 1 . . . . . . . . . . . Siege Activations . | . . . . . . . . . . . . . . . . . . . . . . . . Martial Activations . | . . . . . . . . . . . . . . . . . . . . . . . . Shielding Activations . | . . . . . . . . . . . . . . . . . . . . . . . . Robots Disrupted . | . . . . . . . . . . . . . . . . . . . . . . . . Combat Hostiles . | . . . . . . . . . . . . . . . . . . . . . . . . Robots Corrupted 13 | . . . . . . . . . 2 . 1 . . . 3 . 7 . . . . . . Combat Hostiles 13 | . . . . . . . . . 2 . 1 . . . 3 . 7 . . . . . . Parts Fried 31 | . . . . . . . . 1 6 . . . . . 5 . 19 . . . . . . Impact Corruptions . | . . . . . . . . . . . . . . . . . . . . . . . . Robots Melted 4 | . . . 1 . . . . 1 . . . . 1 . . 1 . . . . . . . Combat Hostiles 4 | . . . 1 . . . . 1 . . . . 1 . . 1 . . . . . . . Parts Melted 34 | . . 1 8 . . . . 2 . 1 7 . 3 9 . 1 2 . . . . . . Heat Transferred 13888 | . 333 444 1739 185 . . . 2044 . 222 1369 1776 407 3848 . 259 1262 . . . . . . Parts Sabotaged . | . . . . . . . . . . . . . . . . . . . . . . . . Parts Stolen . | . . . . . . . . . . . . . . . . . . . . . . . . Parts Stripped . | . . . . . . . . . . . . . . . . . . . . . . . . Power Chain Reactions 4 | . . . . . . . . . . . . . . . . . 3 . . . . . 1 Alert | -11 -10 -10 -9 -9 -9 -8 -8 -7 -7 -6 -5 -5 -5 -5 -5 -5 -5 -4 -4 -4 -4 -3 -3 ------- Run | Yrd Mat Min Mat Min Exi Min Mat Fac Low Fac Fac Was Fac Ext Cet Arc Hub Fac Upp Upp War Pro Res Maximum Alert Level 4 | . . . . . . . . 3 . 1 . . . 2 2 1 4 2 . . . . 3 Low Security (%) 63 | 100 100 100 100 100 . 100 100 54 . 31 100 100 100 45 . 69 27 . . . . . 53 Level 1 19 | . . . . . . . . 18 . 68 . . . 47 90 30 19 . . . . . 10 Level 2 12 | . . . . . . . . 23 . . . . . 7 9 . 31 100 . . . . 8 Level 3 2 | . . . . . . . . 3 . . . . . . . . 7 . . . . . 27 Level 4 1 | . . . . . . . . . . . . . . . . . 15 . . . . . . Level 5 . | . . . . . . . . . . . . . . . . . . . . . . . . High Security . | . . . . . . . . . . . . . . . . . . . . . . . . Max Security . | . . . . . . . . . . . . . . . . . . . . . . . . Peak Influence 1420 | 5 51 60 63 106 . . 87 847 . 313 105 15 36 523 425 223 1420 683 . . . . 1020 Initial 683 | . . . . 4 . . . 30 . 313 74 15 . . 285 89 53 683 . . . . . Average 193 | . 2 10 21 64 . . 18 242 . 230 35 1 7 210 314 168 499 497 . . . . 376 Influence Increases 8511 | 5 68 70 307 136 . . 219 1605 175 9 266 . 66 1095 188 194 2074 178 . 180 . . 1676 Destroy 0b10 Robot/C 3540 | . 40 60 200 100 . . 140 940 140 . 180 . 40 480 80 80 800 . . . . . 260 Destroy 0b10 Robot/NC 170 | 5 10 . 25 . . . 10 60 . 5 5 . . 15 5 . 20 . . . . . 10 Destroy Leader 724 | . 12 10 58 10 . . 34 224 20 2 60 . 20 52 . . 182 . . . . . 40 Allied During Kill 848 | . . . . . . . . . . . . . . 411 85 80 272 . . . . . . Successful Hack 240 | . 5 . 7 . . . 5 32 . . 5 . . 20 3 . . 73 . . . . 90 Select Force Hacks 50 | . . . . . . . . . . . . . . . . . . . . . . . 50 Disable Machine 555 | . . . 15 . . . . 165 . . . . . 75 15 30 255 . . . . . . Anti-Garrison Action 150 | . . . . . . . . . . . . . . . . . 150 . . . . . . Destroy Structure 779 | . 1 . 2 11 . . . 109 . 2 16 . 6 42 . 4 380 . . . . . 206 Partial Spotted 135 | . . . . . . . . . . . . . . . . . . . . . . . 135 Lose Combat Pursuer 1320 | . . . . 15 . . 30 75 15 . . . . . . . 15 105 . 180 . . 885 Influence Decreases 7511 | 5 68 70 296 81 66 . 150 875 476 355 373 45 66 584 476 264 832 1072 236 91 354 . 676 Entered New Map 2464 | . . . . 7 66 . . 39 296 185 78 30 . . 226 134 100 712 186 51 354 . . Time Decay 3516 | 5 17 70 266 74 . . 140 536 140 170 255 15 66 454 230 90 452 190 50 40 . . 256 Search Patrol Dispatched 100 | . . . . . . . . . . . . . . . . . . . . . . . 100 Lost Part 910 | . . . 30 . . . 10 300 40 . 40 . . 90 . . 80 20 . . . . 300 Lost Ally 320 | . . . . . . . . . . . . . . 40 20 40 200 . . . . . 20 Purge Threat 201 | . 51 . . . . . . . . . . . . . . . . 150 . . . . . Squads Dispatched 52 | . 2 . 2 . . . 1 17 . 1 4 . . 2 . . 14 2 . . . . 7 Investigation 8 | . 1 . 1 . . . 1 2 . . 1 . . 1 . . . . . . . . 1 Extermination 13 | . . . . . . . . 4 . 1 2 . . . . . 2 1 . . . . 3 Reinforcement 19 | . 1 . 1 . . . . 4 . . 1 . . 1 . . 7 1 . . . . 3 Assault 2 | . . . . . . . . . . . . . . . . . 2 . . . . . . Garrison 10 | . . . . . . . . 7 . . . . . . . . 3 . . . . . . Intercept . | . . . . . . . . . . . . . . . . . . . . . . . . Searches Triggered 1 | . . . . . . . . . . . . . . . . . . . . . . . 1 Construction Impeded 5 | . . . . . . . . 1 . . 1 . . . . . 3 . . . . . . Haulers Reinforced . | . . . . . . . . . . . . . . . . . . . . . . . . Active Scanning Responses . | . . . . . . . . . . . . . . . . . . . . . . . . Cargo Convoy Interrupts 1 | . . . . . . . . 1 . . . . . . . . . . . . . . . Stealth | -11 -10 -10 -9 -9 -9 -8 -8 -7 -7 -6 -5 -5 -5 -5 -5 -5 -5 -4 -4 -4 -4 -3 -3 --------- Run | Yrd Mat Min Mat Min Exi Min Mat Fac Low Fac Fac Was Fac Ext Cet Arc Hub Fac Upp Upp War Pro Res Distress Signals 18 | . . . 2 . . . 1 5 . . . . . 2 1 . 3 2 . . . . 2 Communications Jammed 29 | . . . . . . . . . . . . . . . . . . 17 . . . . 12 Distress Signals 29 | . . . . . . . . . . . . . . . . . . 17 . . . . 12 Times Spotted 363 | . 8 4 18 6 . . 11 75 8 . 10 5 3 29 2 4 46 16 . 15 10 . 93 Peak Tracking Total 23 | . 3 3 4 3 . . 3 11 7 . 4 2 2 5 5 1 9 9 . 8 10 . 23 Tactical Retreats 31 | . 1 . 1 1 . . 1 4 1 . . 1 . . . . 1 4 . 3 . . 13 ECM-based Alert Blocks 2 | . 1 . 1 . . . . . . . . . . . . . . . . . . . . Traps | -11 -10 -10 -9 -9 -9 -8 -8 -7 -7 -6 -5 -5 -5 -5 -5 -5 -5 -4 -4 -4 -4 -3 -3 ------- Run | Yrd Mat Min Mat Min Exi Min Mat Fac Low Fac Fac Was Fac Ext Cet Arc Hub Fac Upp Upp War Pro Res Traps Triggered 14 | . . . . . . . 2 2 . . 1 . . 1 . . . . . . . . 8 Indirectly . | . . . . . . . . . . . . . . . . . . . . . . . . Trap Hack Attempts . | . . . . . . . . . . . . . . . . . . . . . . . . Triggered . | . . . . . . . . . . . . . . . . . . . . . . . . Disarmed . | . . . . . . . . . . . . . . . . . . . . . . . . Reprogrammed . | . . . . . . . . . . . . . . . . . . . . . . . . Reused . | . . . . . . . . . . . . . . . . . . . . . . . . Traps Extracted . | . . . . . . . . . . . . . . . . . . . . . . . . Installed . | . . . . . . . . . . . . . . . . . . . . . . . . Triggered . | . . . . . . . . . . . . . . . . . . . . . . . . Machines | -11 -10 -10 -9 -9 -9 -8 -8 -7 -7 -6 -5 -5 -5 -5 -5 -5 -5 -4 -4 -4 -4 -3 -3 ---------- Run | Yrd Mat Min Mat Min Exi Min Mat Fac Low Fac Fac Was Fac Ext Cet Arc Hub Fac Upp Upp War Pro Res Machines Disabled 42 | . . . 1 . . . . 11 . . . . . 6 3 2 18 . . . 1 . . Max in Single Turn 5 | . . . 1 . . . . 5 . . . . . 1 1 1 5 . . . 1 . . Garrison Access 1 | . . . . . . . . . . . . . . . . . 1 . . . . . . Network Hub 1 | . . . . . . . . . . . . . . . . . 1 . . . . . . Machines Repaired . | . . . . . . . . . . . . . . . . . . . . . . . . Machines Dismantled 7 | . . . . . . . . . . . . . . 4 2 . . . . . 1 . . Machines Sabotaged . | . . . . . . . . . . . . . . . . . . . . . . . . Overloaded Fab Kills . | . . . . . . . . . . . . . . . . . . . . . . . . Hacking | -11 -10 -10 -9 -9 -9 -8 -8 -7 -7 -6 -5 -5 -5 -5 -5 -5 -5 -4 -4 -4 -4 -3 -3 --------- Run | Yrd Mat Min Mat Min Exi Min Mat Fac Low Fac Fac Was Fac Ext Cet Arc Hub Fac Upp Upp War Pro Res Machines Accessed 64 | . 4 . 3 . 2 . 2 9 . 1 6 . 2 6 3 . 3 8 . . 6 . 9 Terminals 40 | . 3 . 2 . . . 1 7 . 1 4 . 1 6 3 . 3 4 . . . . 5 Fabricators 6 | . . . . . . . . 1 . . 1 . . . . . . 2 . . . . 2 Repair Stations 6 | . 1 . . . . . . 1 . . 1 . 1 . . . . 2 . . . . . Recycling Units 1 | . . . 1 . . . . . . . . . . . . . . . . . . . . Scanalyzers 3 | . . . . . . . 1 . . . . . . . . . . . . . . . 2 Garrison Access . | . . . . . . . . . . . . . . . . . . . . . . . . Total Hacks 142 | . 9 . 7 . 6 . 6 17 . 1 18 . 3 11 5 . 6 17 . . 15 . 21 Successful 65 | . 4 . 1 . 6 . 3 7 . . 8 . . 3 2 . 1 6 . . 15 . 9 Failed 76 | . 5 . 6 . . . 3 9 . 1 10 . 3 8 3 . 5 11 . . . . 12 Catastrophic 25 | . . . . . . . 2 3 . 1 3 . . 3 1 . 3 3 . . . . 6 Database Lockouts 1 | . . . . . . . . 1 . . . . . . . . . . . . . . . Manual 55 | . 7 . . . 1 . 4 11 . . 10 . . 3 2 . . 4 . . . . 13 Terminals 92 | . 8 . 5 . . . 4 13 . 1 13 . 1 11 5 . 6 9 . . . . 16 Fabricators 10 | . . . . . . . . 2 . . 3 . . . . . . 3 . . . . 2 Repair Stations 12 | . 1 . . . . . . 2 . . 2 . 2 . . . . 5 . . . . . Recycling Units 2 | . . . 2 . . . . . . . . . . . . . . . . . . . . Scanalyzers 5 | . . . . . . . 2 . . . . . . . . . . . . . . . 3 Garrison Access . | . . . . . . . . . . . . . . . . . . . . . . . . Terminal Hacks 40 | . 2 . 1 . 6 . . 2 . . 2 . . 2 2 . 1 3 . . 15 . 4 Record 14 | . . . . . 5 . . . . . . . . . 2 . . . . . 7 . . Part Schematic 3 | . . . . . . . . 1 . . 1 . . . . . . . . . . . 1 Prototype ID Bank 6 | . . . . . . . . . . . . . . . . . . . . . 6 . . Open Door 3 | . . . . . . . . . . . . . . 1 . . . . . . 2 . . Branch Access Points 4 | . . . 1 . . . . 1 . . . . . . . . . 1 . . . . 1 Terminal Index 4 | . . . . . . . . . . . 1 . . 1 . . . 1 . . . . 1 Alert Level 1 | . . . . . . . . . . . . . . . . . 1 . . . . . . Unreport Threat 2 | . 1 . . . . . . . . . . . . . . . . 1 . . . . . Hauler Manifests 1 | . 1 . . . . . . . . . . . . . . . . . . . . . . Zone Layout 1 | . . . . . . . . . . . . . . . . . . . . . . . 1 Proto ID Catalog 1 | . . . . . 1 . . . . . . . . . . . . . . . . . . Fabricator Hacks 3 | . . . . . . . . 2 . . 1 . . . . . . . . . . . . Load Schematic 2 | . . . . . . . . 1 . . 1 . . . . . . . . . . . . Build 1 | . . . . . . . . 1 . . . . . . . . . . . . . . . Repair Station Hacks 3 | . . . . . . . . . . . 2 . . . . . . 1 . . . . . Scan Component 1 | . . . . . . . . . . . 1 . . . . . . . . . . . . Repair 1 | . . . . . . . . . . . 1 . . . . . . . . . . . . Refit 1 | . . . . . . . . . . . . . . . . . . 1 . . . . . Recycling Unit Hacks . | . . . . . . . . . . . . . . . . . . . . . . . . Scanalyzer 4 | . . . . . . . 2 . . . . . . . . . . . . . . . 2 Retrieve Study 4 | . . . . . . . 2 . . . . . . . . . . . . . . . 2 Garrison Access Hacks . | . . . . . . . . . . . . . . . . . . . . . . . . Unauthorized Hacks 15 | . 2 . . . . . 1 3 . . 3 . . 1 . . . 2 . . . . 3 Terminals 11 | . 1 . . . . . 1 3 . . 3 . . 1 . . . 1 . . . . 1 Botnet 11 | . 1 . . . . . 1 3 . . 3 . . 1 . . . 1 . . . . 1 Fabricators 3 | . . . . . . . . . . . . . . . . . . 1 . . . . 2 Fabnet 2 | . . . . . . . . . . . . . . . . . . 1 . . . . 1 Overload 1 | . . . . . . . . . . . . . . . . . . . . . . . 1 Repair Stations 1 | . 1 . . . . . . . . . . . . . . . . . . . . . . Mechanics 1 | . 1 . . . . . . . . . . . . . . . . . . . . . . Recycling Units . | . . . . . . . . . . . . . . . . . . . . . . . . Scanalyzers . | . . . . . . . . . . . . . . . . . . . . . . . . Garrison Access . | . . . . . . . . . . . . . . . . . . . . . . . . Data Cores Recovered 2 | . 1 . . . . . . . . . . . . 1 . . . . . . . . . Used . | . . . . . . . . . . . . . . . . . . . . . . . . Hacking Detections 48 | . 4 . 3 . . . 2 8 . 1 5 . 2 5 2 . 3 7 . . . . 6 Full Trace Events 5 | . 1 . 1 . . . . 1 . . 1 . . 1 . . . . . . . . . Feedback Events . | . . . . . . . . . . . . . . . . . . . . . . . . Feedback Blocked . | . . . . . . . . . . . . . . . . . . . . . . . . Robot Schematics Acquired . | . . . . . . . . . . . . . . . . . . . . . . . . Robots Built . | . . . . . . . . . . . . . . . . . . . . . . . . Authchips . | . . . . . . . . . . . . . . . . . . . . . . . . Time . | . . . . . . . . . . . . . . . . . . . . . . . . Total Robot Build Rating . | . . . . . . . . . . . . . . . . . . . . . . . . Part Schematics Acquired 3 | . . . . . . . . 1 . . 1 . . . . . . . . . . . 1 Parts Built 2 | . . . . . . . . 2 . . . . . . . . . . . . . . . Authchips . | . . . . . . . . . . . . . . . . . . . . . . . . Time 84 | . . . . . . . . 84 . . . . . . . . . . . . . . . Total Part Build Rating 8 | . . . . . . . . 8 . . . . . . . . . . . . . . . Part Studies Acquired 4 | . . . . . . . 2 . . . . . . . . . . . . . . . 2 Parts Repaired 1 | . . . . . . . . . . . 1 . . . . . . . . . . . . Time 44 | . . . . . . . . . . . 44 . . . . . . . . . . . . Parts Recycled . | . . . . . . . . . . . . . . . . . . . . . . . . Recycled Matter . | . . . . . . . . . . . . . . . . . . . . . . . . Retrieved Matter . | . . . . . . . . . . . . . . . . . . . . . . . . Retrieved Components . | . . . . . . . . . . . . . . . . . . . . . . . . Parts Scanalyzed . | . . . . . . . . . . . . . . . . . . . . . . . . Part Schematics Acquired . | . . . . . . . . . . . . . . . . . . . . . . . . Parts Damaged . | . . . . . . . . . . . . . . . . . . . . . . . . Bothacking | -11 -10 -10 -9 -9 -9 -8 -8 -7 -7 -6 -5 -5 -5 -5 -5 -5 -5 -4 -4 -4 -4 -3 -3 ------------ Run | Yrd Mat Min Mat Min Exi Min Mat Fac Low Fac Fac Was Fac Ext Cet Arc Hub Fac Upp Upp War Pro Res Used RIF Installer . | . . . . . . . . . . . . . . . . . . . . . . . . Robots Hacked 1 | . . . . . . . . . . . . . . . . . . . . . . . 1 Non-combat . | . . . . . . . . . . . . . . . . . . . . . . . . Combat 1 | . . . . . . . . . . . . . . . . . . . . . . . 1 Robot Hacks Applied . | . . . . . . . . . . . . . . . . . . . . . . . . Relay Couplers Released 3 | . . . . . . . . . . . . . . . . . 3 . . . . . . Machine Destruction 3 | . . . . . . . . . . . . . . . . . 3 . . . . . . Fabnet Peak Effective % 3 | . . . . . . . . . . . . . . . . . . . . . . 3 3 Autooverrided 1 | . . . . . . . . . . . . . . . . . . . . . . . 1 Robots Rewired 10 | . . . . . . . . . . . . . . 10 . . . . . . . . . Allies Hacked 1 | . . . . . . . . . . . . . . . . . 1 . . . . . . Hacks Repelled . | . . . . . . . . . . . . . . . . . . . . . . . . Allies | -11 -10 -10 -9 -9 -9 -8 -8 -7 -7 -6 -5 -5 -5 -5 -5 -5 -5 -4 -4 -4 -4 -3 -3 -------- Run | Yrd Mat Min Mat Min Exi Min Mat Fac Low Fac Fac Was Fac Ext Cet Arc Hub Fac Upp Upp War Pro Res Total Allies 24 | . . . . . . . . . 1 . . 1 . 16 5 . . . . . . . 1 Largest Group 17 | . . . . . . . . . 1 . . 1 . 15 17 16 13 . . . . . . Highest-Rated Group 978 | . . . . . . . . . 106 . . 31 . 585 978 947 661 . . . . . . Highest-Rated Ally 159 | . . . . . . . . . 106 . . 31 . 159 159 159 96 . . . . . . Total Orders . | . . . . . . . . . . . . . . . . . . . . . . . . Ally Attacks 244 | . . . . . . . . . . . . 7 . 107 6 37 86 . . . . . 1 Total Damage 5672 | . . . . . . . . . . . . 108 . 2101 128 1126 2189 . . . . . 20 Kills 29 | . . . . . . . . . . . . . . 10 1 4 14 . . . . . . Allies Corrupted . | . . . . . . . . . . . . . . . . . . . . . . . . Allies Melted 1 | . . . . . . . . . . . . . . . . . 1 . . . . . . Intel | -11 -10 -10 -9 -9 -9 -8 -8 -7 -7 -6 -5 -5 -5 -5 -5 -5 -5 -4 -4 -4 -4 -3 -3 ------- Run | Yrd Mat Min Mat Min Exi Min Mat Fac Low Fac Fac Was Fac Ext Cet Arc Hub Fac Upp Upp War Pro Res Active Infowar (turns) 2833 | . 191 411 484 . . . 147 2 . 158 . . . . . . . 365 114 95 223 61 582 Optics 953 | . . . . . . . 147 . . . . . . . . . . . . . 163 61 582 IFF 158 | . . . . . . . . . . 158 . . . . . . . . . . . . . Seismic 463 | . . . 463 . . . . . . . . . . . . . . . . . . . . Cloaking 2 | . . . . . . . . 2 . . . . . . . . . . . . . . . Jamming 1136 | . . . . . . . . . . . . . . . . . . 365 114 95 223 61 278 ECM 893 | . 191 411 291 . . . . . . . . . . . . . . . . . . . . Robot Analysis Total . | . . . . . . . . . . . . . . . . . . . . . . . . Derelict Logs Recovered 4 | . . 1 . 1 . . . . . . . . . . . . . . . 2 . . . Drone Launches . | . . . . . . . . . . . . . . . . . . . . . . . . Drone Recoveries . | . . . . . . . . . . . . . . . . . . . . . . . . Exploration | -11 -10 -10 -9 -9 -9 -8 -8 -7 -7 -6 -5 -5 -5 -5 -5 -5 -5 -4 -4 -4 -4 -3 -3 ------------- Run | Yrd Mat Min Mat Min Exi Min Mat Fac Low Fac Fac Was Fac Ext Cet Arc Hub Fac Upp Upp War Pro Res Turns Passed 12664 | 96 265 411 870 166 469 32 1017 2188 295 352 1025 285 338 1581 499 182 1127 388 114 95 223 61 585 Spaces Moved 9128 | 48 144 228 382 87 292 18 425 1028 153 171 465 115 193 596 218 78 378 755 342 365 720 268 1659 Core 10 | 7 . . . . . . . 1 . . . . . . . . . . . . . . 2 Treads 4196 | 41 144 228 371 87 292 18 425 619 1 . 392 115 193 596 218 78 378 . . . . . . Legs 322 | . . . 11 . . . . 42 25 171 73 . . . . . . . . . . . . Wheels 493 | . . . . . . . . 366 127 . . . . . . . . . . . . . . Hover . | . . . . . . . . . . . . . . . . . . . . . . . . Flight 4107 | . . . . . . . . . . . . . . . . . . 755 342 365 720 268 1657 Fastest Speed 15 | 50 160 160 160 160 160 160 145 110 160 192 162 160 160 160 160 160 160 17 26 26 22 22 15 Average Speed 98 | 148 160 160 161 160 160 160 145 144 165 195 169 165 160 160 160 161 183 22 26 26 22 22 25 Slowest Speed 1200 | 160 160 160 240 160 160 160 160 1200 245 270 325 245 160 160 160 240 320 103 26 26 26 22 50 Overloaded Moves 38 | . . . . . . . . . . . . . . . . . . 15 . . . . 23 Propulsion Burnouts . | . . . . . . . . . . . . . . . . . . . . . . . . Robots Hopped 86 | . . . . . . . . . . . . . . . . . . 18 . 2 2 . 64 Potential Cave-ins . | . . . . . . . . . . . . . . . . . . . . . . . . Cave-ins Triggered . | . . . . . . . . . . . . . . . . . . . . . . . . Exploration Rate (%) 42 | 4 24 60 37 23 71 10 38 39 28 7 16 64 9 76 73 73 37 27 54 54 93 55 55 Regions Visited 23 Branch Regions 13 Pre-discovered Areas 2 | . . . . . 1 . . . . . . . . . . . . . . 1 . . . Known Exits Taken 10 | . . 1 1 . . . 1 1 1 . . . . . . . . 1 1 1 1 1 . Unknown Exits Taken 11 | 1 1 . . 1 1 1 . . . 1 . . 1 1 1 1 1 . . . . . . Scrap Searched 5 | . . . . . . . . . 2 . . . . . . . . . 2 1 . . . Spaces Dug 8 | . . . . . . . . 1 . . 2 . . . . . 3 . . . . . 2 Terrain Destroyed 548 | . . . . 11 . . . 167 2 2 8 . 3 12 . . 203 . . . . . 140 Melee 1 | . . . . . . . . 1 . . . . . . . . . . . . . . . Projectile 88 | . . . . . . . . 11 2 2 8 . 3 12 . . 48 . . . . . 2 AOE 459 | . . . . 11 . . . 155 . . . . . . . . 155 . . . . . 138 Terrain Rammed . | . . . . . . . . . . . . . . . . . . . . . . . . Walls Destroyed . | . . . . . . . . . . . . . . . . . . . . . . . . Machines Disabled . | . . . . . . . . . . . . . . . . . . . . . . . . Actions | -11 -10 -10 -9 -9 -9 -8 -8 -7 -7 -6 -5 -5 -5 -5 -5 -5 -5 -4 -4 -4 -4 -3 -3 --------- Run | Yrd Mat Min Mat Min Exi Min Mat Fac Low Fac Fac Was Fac Ext Cet Arc Hub Fac Upp Upp War Pro Res Total 11809 | 62 163 254 541 100 295 21 781 1533 186 183 668 176 208 1074 349 128 624 964 366 362 769 269 1733 Wait 1461 | . . 16 49 5 . 4 298 226 11 . 131 8 5 254 82 25 72 184 19 . 21 2 49 Move 8949 | 47 143 227 381 86 291 17 424 1027 152 170 465 114 192 595 217 77 377 718 341 360 716 267 1545 Hop 71 | . . . . . . . . . . . . . . . . . . 18 . 2 1 . 50 Pick Up 133 | 4 4 1 22 . 1 . 10 37 3 1 12 7 1 6 5 2 8 5 1 . . . 3 Fast Attach 132 | 7 2 . 7 . . . 2 24 3 3 9 6 1 6 4 3 15 5 2 . 9 . 24 Attach 84 | . . . 4 . . . 2 25 8 2 5 2 . 5 1 2 10 8 . . 2 . 8 Detach 56 | . 2 . . . . . 1 15 1 2 6 1 1 . 3 3 8 6 . . 4 . 3 Swap 74 | . 2 . 9 2 1 . 9 16 2 . 7 3 . 10 2 5 5 . . . . . 1 Drop 167 | . 2 . 20 . 2 . 10 33 . 1 10 17 1 4 10 6 8 20 3 . 8 . 12 Fire 485 | 4 8 10 49 7 . . 25 128 6 4 23 18 7 52 6 5 118 . . . . . 15 Melee 1 | . . . . . . . . 1 . . . . . . . . . . . . . . . Ram 1 | . . . . . . . . 1 . . . . . . . . . . . . . . . Kick . | . . . . . . . . . . . . . . . . . . . . . . . . Crush 4 | . . . . . . . . . . . . . . 1 . . 3 . . . . . . Escape Stasis 24 | . . . . . . . . . . . . . . 1 . . . . . . . . 23 Rewire 108 | . . . . . . . . . . . . . . 108 . . . . . . . . . Trap . | . . . . . . . . . . . . . . . . . . . . . . . . Miscellaneous 59 | . . . . . . . . . . . . . . 32 19 . . . . . 8 . . Route ------- -11/Scrapyard -10/Materials -10/Mines -9/Materials -9/Mines -9/Exiles (discovered 2 exits: [*Min x2]) -8/Mines -8/Materials -7/Factory (discovered 4 exits: *Fac x2 / *Low x2) -7/Lower Caves -6/Factory -5/Factory -5/Waste -5/Factory -5/Extension (discovered 2 exits: *Fac / *Cet) -5/Cetus -5/Archives (discovered 2 exits: *Fac / *Hub) -5/Hub_04(d) (discovered 2 exits: *Fac x2) -4/Factory (discovered 3 exits: *Upp x2 / Arm) -4/Upper Caves -4/Upper Caves (discovered 2 exits: *Res / *War) -4/Warlord -3/Proximity Caves -3/Research (discovered 2 exits: *Qua x2) History --------- Turn | Location | Event 22 | -11/Scrapyard | Discovered new exit (range 15) 97 | -11/Scrapyard | Entered Materials 300 | -10/Materials | Discovered new exit (range 16) 315 | -10/Materials | Build established: Mutant 362 | -10/Materials | Entered Mines 439 | -10/Mines | Identified exit to Materials 656 | -10/Mines | YI-UF0 nonchalantly dropped a Grenade Launcher on the ground 773 | -10/Mines | Entered Materials 773 | -9/Materials | Evolved 2 slots: Propulsion x1, Utility x1 1499 | -9/Materials | Identified exit to Mines 1534 | -9/Materials | Build established: Scavenger-Mutant 1643 | -9/Materials | Entered Mines 1706 | -9/Mines | Learned location of 1 exit from Materials 1803 | -9/Mines | Deemed a non-threat by the Exiles lab entrance 1803 | -9/Mines | Discovered new exit (range 5) 1809 | -9/Mines | Entered Exiles 1835 | -9/Exiles | Discovered new exit (range 15) 1847 | -9/Exiles | Build established: Mutant 1853 | -9/Exiles | Met 8R-AWN 1877 | -9/Exiles | Met EX-HEX 1921 | -9/Exiles | Met EX-BIN 1941 | -9/Exiles | Aligned with FarCom system 1942 | -9/Exiles | Given EX-Vault access code 1979 | -9/Exiles | Opened EX-Vault 1991 | -9/Exiles | Found Cloak of Protection 2021 | -9/Exiles | Warned to stay clear of 0b10 Research branches 2069 | -9/Exiles | Met EX-DEC 2075 | -9/Exiles | Learned location of Zion (-7) 2265 | -9/Exiles | Discovered new exit (range 10) 2278 | -9/Exiles | Left Exiles lab with Cloak of Protection 2278 | -9/Exiles | Entered Mines 2302 | -8/Mines | Discovered new exit (range 5) 2310 | -8/Mines | Entered Materials 2310 | -8/Materials | Evolved 2 slots: Propulsion x1, Utility x1 2311 | -8/Materials | Identified exit to Factory 3327 | -8/Materials | Entered Factory 3327 | -7/Factory | Evolved 2 slots: Utility x2 3395 | -7/Factory | Discovered new exit (range 11) 3434 | -7/Factory | Identified exit to Factory 3728 | -7/Factory | Garrison activated, responded to threat 4079 | -7/Factory | Central database locked down 4100 | -7/Factory | Discovered exit to Factory (range 11) 4346 | -7/Factory | Build established: Scavenger-Mutant 4377 | -7/Factory | Garrison activated, responded to threat 4480 | -7/Factory | System corruption reached 10% 4532 | -7/Factory | Lost 9 parts (4n3u2w) 4879 | -7/Factory | Cargo convoy interrupted 4926 | -7/Factory | Core integrity fell below 50% 4967 | -7/Factory | Destroyed 12 combat bots 4972 | -7/Factory | Lost 8 parts (1p4n2u1w) 5088 | -7/Factory | Fabricated Hyb. Deuterium Engine (x2) 5182 | -7/Factory | Identified exit to Lower Caves 5266 | -7/Factory | Found Prototype Launcher 5482 | -7/Factory | Garrison activated, responded to threat 5514 | -7/Factory | Core integrity fell below 20% 5515 | -7/Factory | Entered Lower Caves 5546 | -7/Lower Caves | Lost 6 parts (2n4u) 5747 | -7/Lower Caves | Identified Tesla Bomb Launcher 5778 | -7/Lower Caves | Destroyed 7 combat bots 5784 | -7/Lower Caves | Build established: Mutant 5785 | -7/Lower Caves | Lost 4 parts (1n1u2w) 5795 | -7/Lower Caves | 12-ASH showed up to help 5799 | -7/Lower Caves | 12-ASH revealed a hidden path 5810 | -7/Lower Caves | Entered Factory 5810 | -6/Factory | Evolved 2 slots: Power x1, Utility x1 6043 | -6/Factory | Discovered new exit (range 9) 6162 | -6/Factory | Entered another Factory area 6162 | -5/Factory | Evolved 2 slots: Power x1, Weapon x1 6464 | -5/Factory | Build established: Gunner 6960 | -5/Factory | Lost 4 parts (1p2n1u) 7048 | -5/Factory | Repaired Hyb. Deuterium Engine 7187 | -5/Factory | Sucked down chute 7187 | -5/Factory | Entered Waste 7188 | -5/Waste | Met a frightened Derelict 7196 | -5/Waste | Build established: Scavenger-Gunner 7202 | -5/Waste | EMP discharged 7202 | -5/Waste | System corruption reached 10% 7214 | -5/Waste | Spotted C-40 Crusher 7219 | -5/Waste | Destroyed C-40 Crusher 7223 | -5/Waste | Spotted C-40 Crusher 7250 | -5/Waste | Crushed by Compactor (1 part destroyed, 1 dropped) 7253 | -5/Waste | Crushed by Compactor (1 part destroyed, 1 dropped) 7254 | -5/Waste | Destroyed C-40 Crusher 7261 | -5/Waste | Spotted C-40 Crusher 7263 | -5/Waste | Destroyed C-40 Crusher 7282 | -5/Waste | Spotted C-40 Crusher 7288 | -5/Waste | Found Damper Plating 7297 | -5/Waste | Spotted C-40 Crusher 7302 | -5/Waste | EMP discharged 7344 | -5/Waste | Destroyed C-40 Crusher 7370 | -5/Waste | Found Damper Plating 7380 | -5/Waste | Destroyed C-40 Crusher 7402 | -5/Waste | EMP discharged 7402 | -5/Waste | System corruption reached 30% 7458 | -5/Waste | Discovered new exit (range 10) 7472 | -5/Waste | Entered Factory 7776 | -5/Factory | Build established: Scavenger-Tank 7788 | -5/Factory | Discovered new exit (range 15) 7810 | -5/Factory | Entered Extension 8032 | -5/Extension | Rescued a captive Derelict 8382 | -5/Extension | Rescued a captive Derelict 8385 | -5/Extension | Rescued a captive Derelict 8457 | -5/Extension | Spotted B-75 Beast 8545 | -5/Extension | Spotted B-75 Beast 8575 | -5/Extension | Allies destroyed B-75 Beast 8578 | -5/Extension | Lost 3 parts (2u1w) 8728 | -5/Extension | Rescued a captive Derelict 8762 | -5/Extension | Rescued a captive Derelict 8892 | -5/Extension | Lost 3 parts (2u1w) 9105 | -5/Extension | Rescued A7 9335 | -5/Extension | Discovered new exit (range 10) 9337 | -5/Extension | Discovered new exit (range 6) 9391 | -5/Extension | Entered Cetus 9391 | -5/Cetus | Accompanied by 13 allies (A7) 9396 | -5/Cetus | Acquired a Cetus Manufacturing Module code from A7 9417 | -5/Cetus | Spotted Cetus Guard 9418 | -5/Cetus | Destroyed Cetus Guard 9419 | -5/Cetus | Spotted Cetus Guard 9422 | -5/Cetus | Destroyed Cetus Guard 9422 | -5/Cetus | Destroyed Cetus Guard 9521 | -5/Cetus | Started Cetus Manufacturing Module 9546 | -5/Cetus | Manufactured an Enhanced Grunt 9571 | -5/Cetus | Manufactured an Enhanced Grunt 9596 | -5/Cetus | Manufactured an Enhanced Grunt 9621 | -5/Cetus | Manufactured an Enhanced Grunt 9646 | -5/Cetus | Manufactured an Enhanced Grunt 9700 | -5/Cetus | Escorted A7 to Cetus Mainframe 9757 | -5/Cetus | Found a strange terminal 9839 | -5/Cetus | Build established: Commander-Mutant 9839 | -5/Cetus | Discovered new exit (range 15) 9890 | -5/Cetus | Entered Archives 9890 | -5/Archives | Accompanied by 17 allies (A7) 9895 | -5/Archives | Received a hacking code to weaken MAIN.C 9947 | -5/Archives | Unable to access archive contents 9965 | -5/Archives | Lost 3 allies 10001 | -5/Archives | Discovered new exit (range 15) 10030 | -5/Archives | Discovered new exit (range 14) 10072 | -5/Archives | Entered Hub_04(d) 10072 | -5/Hub_04(d) | Accompanied by 13 allies 10072 | -5/Hub_04(d) | Discovered new exit (range 10) 10196 | -5/Hub_04(d) | Build established: Commander-Tank 10408 | -5/Hub_04(d) | Lost 4 allies 10461 | -5/Hub_04(d) | Discovered new exit (range 14) 10727 | -5/Hub_04(d) | Garrison activated, responded to threat 10790 | -5/Hub_04(d) | Core integrity fell below 50% 10825 | -5/Hub_04(d) | Lost 8 parts (1p1n4u2w) 11029 | -5/Hub_04(d) | Network Hub disabled 11076 | -5/Hub_04(d) | Build established: Scavenger-Tank 11114 | -5/Hub_04(d) | Destroyed 8 combat bots 11194 | -5/Hub_04(d) | Spotted Lightning 11196 | -5/Hub_04(d) | Spotted Lightning 11199 | -5/Hub_04(d) | Entered Factory 11199 | -4/Factory | Evolved 2 slots: Propulsion x2 11445 | -4/Factory | Identified exit to Upper Caves 11445 | -4/Factory | Identified exit to Armory 11454 | -4/Factory | Build established: Scavenger-Sprinter 11494 | -4/Factory | Spotted B-86 Titan 11587 | -4/Factory | Entered Upper Caves 11698 | -4/Upper Caves | Discovered new exit (range 11) 11700 | -4/Upper Caves | Identified exit to Upper Caves 11701 | -4/Upper Caves | Entered another Upper Caves area 11709 | -4/Upper Caves | Learned 8 Research zone layouts 11720 | -4/Upper Caves | Discovered new exit (range 5) 11722 | -4/Upper Caves | Learned location of Quarantine (-3) 11755 | -4/Upper Caves | Attracted the attention of an 0b10 checkpoint 11795 | -4/Upper Caves | Discovered new exit (range 4) 11796 | -4/Upper Caves | Identified exit to Warlord 11796 | -4/Upper Caves | Entered Warlord 11805 | -4/Warlord | System corruption cleaned by Quarantine Array 11856 | -4/Warlord | Found Prototype Processor 11856 | -4/Warlord | Identified Spectral Analyzer 11858 | -4/Warlord | Found Prototype Hackware 11858 | -4/Warlord | Identified System Mapper 11862 | -4/Warlord | Found Prototype Reactor 11862 | -4/Warlord | Identified Vortex Chain Reactor 11885 | -4/Warlord | Met Warlord 11892 | -4/Warlord | Warlord's base attacked by MAIN.C 11919 | -4/Warlord | Found Prototype Energy Gun 11919 | -4/Warlord | Identified Vortex Rifle 11922 | -4/Warlord | Found Prototype Energy Cannon 11922 | -4/Warlord | Identified Vortex Driver 12006 | -4/Warlord | Opened side exit 12017 | -4/Warlord | Discovered new exit (range 8) 12018 | -4/Warlord | Identified exit to Proximity Caves 12019 | -4/Warlord | Entered Proximity Caves 12045 | -3/Proximity Caves | Spotted B-86 Titan 12078 | -3/Proximity Caves | Discovered new exit (range 11) 12080 | -3/Proximity Caves | Identified exit to Research 12080 | -3/Proximity Caves | Entered Research 12080 | -3/Research | Evolved 2 slots: Propulsion x2 12137 | -3/Research | Identified exit to Quarantine 12155 | -3/Research | Build established: Hacker-Sprinter 12281 | -3/Research | System corruption reached 10% 12343 | -3/Research | Lost 9 parts (6n3u) 12352 | -3/Research | Spotted B-86 Titan 12404 | -3/Research | Lost 4 parts (1p2n1u) 12501 | -3/Research | Found Fusion Bomb Launcher 12524 | -3/Research | Found Fusion Bomb Launcher 12554 | -3/Research | System corruption reached 30% 12580 | -3/Research | Search patrols dispatched 12582 | -3/Research | Found Prototype Device 12582 | -3/Research | Identified Exp. EM Disruption Field 12606 | -3/Research | Spotted B-86 Titan 12642 | -3/Research | Core integrity fell below 50% 12660 | -3/Research | Core integrity fell below 20% 12665 | -3/Research | Destroyed by P-80 Master with Gamma Rifle Last Messages --------------- P-80 Master resets P-80 Master, system corruption cleaned. Fusion Bomb Launcher destroyed. Destroyed Fusion Bomb Launcher. S-43 Plague destroyed. Destroyed Xenon Bombardment Thruster. P-80 Master resets P-80 Master, system corruption cleaned. Tesla Bomb Launcher destroyed. The unstable cave ceiling collapses. Vortex penetrates P-80 Master. P-80 Master suffers critical hit (Sunder). P-80 Master Adv. Heat Sink ripped off. P-80 Master Mic. Antimatter Reactor ripped off. P-80 Master destroyed. Destroyed Imp. Antigrav System. Acquired 32 matter. The unstable cave ceiling collapses. Spectral Analyzer destroyed. Vortex penetrates P-80 Master. Destroyed Mic. Antimatter Reactor. Vortex Driver destroyed. Map ----- +----------------------------------------------------+ | ??????????????????????????????# """ # |! | | ??????????????????????????????# = """ #] |! | | ??????????????????????????????# " " # | | ??????????????????????????????# + | | ??????????????????????????????# = # * ##### | | ??????????????????????????????# # #???? | | ??????????????????????????????# = / #???? | | ??????????????????????????????####/######+###???? | | ?????????????????????????????????# #???? ??????? | | ?????????????????????????????????# #???? ??????? | | ?????????????????????????????????# #??? ?????? | | ?????????????????????????????????#g#??? ?????? | | ?????????????????????????????????#g#?? ????? | | ?????????????????????????????????# #?? ???## | | ?????????????????????????????????#g#? ??# | | ?????????????????????????????????# #? ??# | | ?????????????????????????????????# # ?# | | ?????????????????????????????????# # ?# | | ?????????????????????????????????# # # | | ?????????????????????????????????# # # | | ????????????????????????########?# ############## | | ??????????????????#######! ### ###??????????# | | ????????????????### # # # #???????????? | | ???????????????## # ############# | | ???????????????# !p p! + " | | ???????????????# p=s@ # ############# | | ???????????????# s pp# #! #???????????? | | ??????######???# ####### ########?????? | | ??????# #???# !p[ #?????# # !#?????? | | ??????# ]#???# " =! #?????# + #?????? | | ??????# #???# " % ##?????# # #?????? | | ??????# ##### p ???????# # #?????? | | ??????# / + #???????# #? #?????? | | ??????# # #####+############ #? ! #?????? | | ??????# # ### #########????? | | ??????# # * ] | | ??????# # [% ###########??? | | ??????###### ####????????????? | | ???????????# """ """ #???????????????? | | ???????????# """""" #???????????????? | | ???????????# """"""" #??########?????? | | ???????????# !! #? #?????? | | ???????????# !! #? #?????? | | ???????????# # #?????# | | ???????????# # #?????# | | ???????????+ + #?????# | | ???????????####### # #?????# | | ???????????????####+###### # #?????# | | ???????????????# ## #? #?????# | | ???????????????# #### ###?#########????## | +----------------------------------------------------+ Best States ------------- Heat Dissipation 100 Coolant Potential 120 Energy Generation 53 Energy Capacity 2225 Matter Stores 416 Matter Capacity 500 Sight Range 24 Terrain Scan Density 10 ECM Strength 1 Jamming Range 16 Corruption Containment 12 Armor Coverage 1600 Resistance: TH 10 Resistance: EM 90 Core Shielding 20 Propulsion Shielding 66 Weapon Cycling 15 Evasion (%) 66 Targeting Accuracy 14 Target Analysis 5 Core Analysis 6 Armor Integrity Analysis 30 Recoil Reduction 4 Particle Charging 25 Salvage Targeting 2 Offensive Hacking 20 Item Schematics ----------------- Hyb. Deuterium Engine | -7/Factory | Hacked Weapon Mount | -5/Factory | Hacked Cld. VTOL Module | -3/Research | Hacked Robot Schematics ------------------ None Fabricated ------------ Hyb. Deuterium Engine | x2 | -7/Factory Repaired ---------- Hyb. Deuterium Engine | 8% | -5/Factory Studied --------- Minigun | -8/Materials | Hacked Missile Launcher | -8/Materials | Hacked Impulse Thruster Array | -3/Research | Hacked Impulse Thruster | -3/Research | Hacked Alien Tech Used ----------------- None Achievements -------------- Construction Begets Destruction Fitting Room Resistances Are Futile Sixth Sense Well-fed Force Field Challenges ------------ None Game ------ Seed WaveMomentumScythe Manual? 0 Play Time 02:41:59 Cumulative 366.2 hours Start 2025.12.02 @ 17:00:13 End 2025.12.02 @ 19:36:27 Sessions 1 Manual Loads 0 Difficulty Rogue Special Mode None Game No. 361 Rogue 361 Adventurer 0 Explorer 0 Win Type - Total 26 Types 19/0/4/3/0/0/0/0/0/0 Lore% 76 Gallery% 77 Achievement% 52 Wizard Run 0 Options --------- Layout 0 ASCII 0 Keyboard 1 Movement Numpad Keybinds 0 Fullscreen 1 Font 18/SmallcapsGlow Map View 76x50 Zoom Use 0% Tactical HUD 1 Map Filters NONE Filters NONE Steam 1 RUN: 238aa1d9-2346-4501-a083-40fc35ad0316